[Event "Hungarian Rapid-ch 2022"]
[Site "Ajka"]
[Date "2022.07.17"]
[Round "11.8"]
[White "Korpa, Bence"]
[Black "Varga, Zoltan"]
[Result "1/2-1/2"]
[ECO "D00"]
[WhiteElo "2537"]
[BlackElo "2401"]
[Annotator "ChessBase"]
[PlyCount "99"]
[EventDate "2022.07.15"]
[EventType "swiss"]
[EventCountry "HUN"]
[SourceTitle "playchess.com"]
[Source "ChessBase"]
[SourceQuality "1"]
[TimeControl "900+10"]

1. d4 {[%emt 0:00:13]} d5 {[%emt 0:00:11]} 2. Nc3 {[%emt 0:00:02]} Bf5 {[%emt 0:00:47]} 3. f3 {[%emt 0:00:10]} Nf6 {[%emt 0:01:32]} 4. g4 {[%emt 0:00:06]} Bc8 {[%emt 0:00:01]} 5. Bf4 {[%emt 0:01:14]} e6 {[%emt 0:01:02]} 6. Nb5 {[%emt 0:00:06]} Na6 {[%emt 0:00:26]} 7. e3 {[%emt 0:00:08]} c6 {[%emt 0:03:00]} 8. Nc3 {[%emt 0:00:03]} Qb6 {[%emt 0:00:01]} 9. a3 {[%emt 0:01:44]} c5 {[%emt 0:01:15]} 10. Nb5 {[%emt 0:00:07]} Bd7 {[%emt 0:00:38]} 11. a4 {[%emt 0:00:06]} c4 {[%emt 0:00:00]} 12. c3 {[%emt 0:01:33]} Bxb5 {[%emt 0:01:52]} 13. axb5 {[%emt 0:00:02]} Qxb5 {[%emt 0:00:01]} 14. Qa4 {[%emt 0:01:28]} Qxa4 {[%emt 0:00:27]} 15. Rxa4 {[%emt 0:00:02]} Kd7 {[%emt 0:00:01]} 16. b3 {[%emt 0:00:18]} cxb3 {[%emt 0:00:42]} 17. Bb5+ {[%emt 0:00:20]} Kd8 {[%emt 0:00:00]} 18. Bxa6 {[%emt 0:01:24]} bxa6 {[%emt 0:00:03]} 19. Kd2 {[%emt 0:00:06]} Nd7 {[%emt 0:01:45]} 20. Nh3 {[%emt 0:02:02]} Nb6 {[%emt 0:00:11]} 21. Rxa6 {[%emt 0:00:02]} Kc8 {[%emt 0:00:12]} 22. Ke2 {[%emt 0:00:59]} Nc4 {[%emt 0:02:08]} 23. Rb1 {[%emt 0:00:45]} Kb7 {[%emt 0:00:14]} 24. Ra4 {[%emt 0:00:12]} f6 {[%emt 0:00:57]} 25. Rxb3+ {[%emt 0:00:07]} Nb6 {[%emt 0:00:02]} 26. c4 {[%emt 0:00:44]} Kc6 {[%emt 0:00:53]} 27. Ra6 {[%emt 0:00:45]} Kb7 {[%emt 0:00:13]} 28. Ra4 {[%emt 0:00:03]} Kc6 {[%emt 0:00:01]} 29. cxd5+ {[%emt 0:00:09]} exd5 {[%emt 0:00:02]} 30. Ra5 {[%emt 0:00:49]} Be7 {[%emt 0:00:04]} 31. e4 {[%emt 0:00:21]} Rhc8 {[%emt 0:00:08]} 32. Rc3+ {[%emt 0:00:37]} Kb7 {[%emt 0:00:00]} 33. Rxc8 {[%emt 0:00:27]} Rxc8 {[%emt 0:00:01]} 34. Ra2 {[%emt 0:00:05]} Bb4 {[%emt 0:00:13]} 35. Nf2 {[%emt 0:00:07]} Bc3 {[%emt 0:00:14]} 36. Be3 {[%emt 0:00:47]} a5 {[%emt 0:00:11]} 37. Nd3 {[%emt 0:00:03]} dxe4 {[%emt 0:00:42]} 38. Nc5+ {[%emt 0:00:07]} Kc6 {[%emt 0:00:07]} 39. Nxe4 {[%emt 0:00:05]} Bb4 {[%emt 0:00:03]} 40. Nc5 {[%emt 0:00:58]} g6 {[%emt 0:00:11]} 41. Ne6 {[%emt 0:00:44]} Kb5 {[%emt 0:00:10]} 42. g5 {[%emt 0:00:10]} fxg5 {[%emt 0:00:02]} 43. Kd3 {[%emt 0:00:20]} g4 {[%emt 0:00:12]} 44. Ke4 {[%emt 0:00:12]} Rc4 {[%emt 0:00:15]} 45. Nf4 {[%emt 0:00:44]} Na4 {[%emt 0:00:01]} 46. Nd5 {[%emt 0:00:16]} Nc5+ {[%emt 0:00:07]} 47. Kf4 {[%emt 0:00:02]} Ne6+ {[%emt 0:00:04]} 48. Ke4 {[%emt 0:00:04]} Nc5+ {[%emt 0:00:48]} 49. Kf4 {[%emt 0:00:03]} Ne6+ {[%emt 0:00:01]} 50. Ke4 {[%emt 0:00:02]} 1/2-1/2

[Event "Hungarian Rapid-ch 2022"]
[Site "Ajka"]
[Date "2022.07.17"]
[Round "11.9"]
[White "Kantor, Gergely"]
[Black "Jakab, Attila"]
[Result "1-0"]
[ECO "D35"]
[WhiteElo "2582"]
[BlackElo "2311"]
[Annotator "ChessBase"]
[PlyCount "69"]
[EventDate "2022.07.15"]
[EventType "swiss"]
[EventCountry "HUN"]
[SourceTitle "playchess.com"]
[Source "ChessBase"]
[SourceQuality "1"]
[TimeControl "900+10"]

1. d4 {[%emt 0:00:12]} d5 {[%emt 0:00:13]} 2. c4 {[%emt 0:00:01]} e6 {[%emt 0:00:04]} 3. Nc3 {[%emt 0:00:02]} Nf6 {[%emt 0:00:02]} 4. cxd5 {[%emt 0:00:01]} exd5 {[%emt 0:00:02]} 5. Bg5 {[%emt 0:00:02]} c6 {[%emt 0:00:06]} 6. e3 {[%emt 0:00:01]} Nbd7 {[%emt 0:00:04]} 7. Bd3 {[%emt 0:00:02]} Bd6 {[%emt 0:00:03]} 8. Nge2 {[%emt 0:00:30]} Nf8 {[%emt 0:00:08]} 9. Qc2 {[%emt 0:00:34]} Ng6 {[%emt 0:00:03]} 10. Ng3 {[%emt 0:01:14]} h6 {[%emt 0:00:38]} 11. Bxf6 {[%emt 0:00:14]} Qxf6 {[%emt 0:00:01]} 12. Nh5 {[%emt 0:00:39]} Qg5 {[%emt 0:00:02]} 13. Nxg7+ {[%emt 0:00:10]} Kf8 {[%emt 0:00:01]} 14. Nf5 {[%emt 0:00:38]} Bxf5 {[%emt 0:00:41]} 15. Bxf5 {[%emt 0:00:02]} Qxg2 {[%emt 0:00:03]} 16. O-O-O {[%emt 0:00:34]} Nh4 {[%emt 0:00:15]} 17. h3 {[%emt 0:03:46]} Qf3 {[%emt 0:00:45]} 18. Bg4 {[%emt 0:00:02]} Qf6 {[%emt 0:00:04]} 19. e4 {[%emt 0:00:09]} h5 {[%emt 0:02:32]} 20. Be2 {[%emt 0:00:30]} Qxf2 {[%emt 0:01:37]} 21. e5 {[%emt 0:00:03]} Bb4 {[%emt 0:00:10]} 22. Rhf1 {[%emt 0:00:35]} Qe3+ {[%emt 0:00:33]} 23. Kb1 {[%emt 0:00:01]} Re8 {[%emt 0:00:13]} 24. Bd3 {[%emt 0:00:43]} Rh6 {[%emt 0:00:37]} 25. Qb3 {[%emt 0:01:19]} a5 {[%emt 0:01:10]} 26. a3 Nf3 {[%emt 0:00:03]} 27. Nxd5 {[%emt 0:04:31]} Nxd4 {[%emt 0:06:24]} 28. Nxe3 {[%emt 0:00:20]} Nxb3 {[%emt 0:00:02]} 29. axb4 {[%emt 0:00:30]} Rxe5 {[%emt 0:00:01]} 30. Nc4 {[%emt 0:00:24]} Rd5 {[%emt 0:00:11]} 31. Nxa5 {[%emt 0:00:41]} Nxa5 {[%emt 0:00:01]} 32. bxa5 {[%emt 0:00:01]} Rhd6 {[%emt 0:00:02]} 33. Be2 {[%emt 0:00:21]} Ke7 {[%emt 0:00:01]} 34. Rxd5 {[%emt 0:00:17]} Rxd5 {[%emt 0:00:01]} 35. Bc4 {[%emt 0:00:01]} 1-0

[Event "Hungarian Rapid-ch 2022"]
[Site "Ajka"]
[Date "2022.07.17"]
[Round "11.10"]
[White "Mihok, Oliver"]
[Black "Krstulovic, Alex"]
[Result "1-0"]
[ECO "B12"]
[WhiteElo "2549"]
[BlackElo "2413"]
[Annotator "ChessBase"]
[PlyCount "71"]
[EventDate "2022.07.15"]
[EventType "swiss"]
[EventCountry "HUN"]
[SourceTitle "playchess.com"]
[Source "ChessBase"]
[SourceQuality "1"]
[TimeControl "900+10"]

1. e4 {[%emt 0:00:13]} c6 {[%emt 0:00:11]} 2. d4 {[%emt 0:00:07]} Na6 {[%emt 0:00:01]} 3. Nc3 {[%emt 0:00:31]} Nc7 {[%emt 0:00:02]} 4. Nf3 {[%emt 0:00:12]} d5 {[%emt 0:00:04]} 5. h3 {[%emt 0:00:22]} dxe4 {[%emt 0:00:03]} 6. Nxe4 {[%emt 0:00:01]} Nf6 {[%emt 0:00:01]} 7. Bd3 {[%emt 0:00:20]} Ncd5 {[%emt 0:01:24]} 8. O-O {[%emt 0:00:28]} Nxe4 {[%emt 0:00:03]} 9. Bxe4 {[%emt 0:00:01]} g6 {[%emt 0:02:00]} 10. Re1 {[%emt 0:00:43]} Bg7 {[%emt 0:00:13]} 11. Bg5 {[%emt 0:00:27]} Nf6 {[%emt 0:00:10]} 12. Bd3 {[%emt 0:00:13]} O-O {[%emt 0:00:07]} 13. Qd2 {[%emt 0:00:53]} Be6 {[%emt 0:00:29]} 14. c4 {[%emt 0:00:27]} b5 {[%emt 0:01:13]} 15. b3 {[%emt 0:00:52]} bxc4 {[%emt 0:00:59]} 16. bxc4 {[%emt 0:00:02]} Bf5 {[%emt 0:02:39]} 17. Bxf5 {[%emt 0:00:26]} gxf5 {[%emt 0:00:01]} 18. Qf4 {[%emt 0:00:25]} e6 {[%emt 0:00:33]} 19. Qh4 {[%emt 0:00:17]} h6 {[%emt 0:01:15]} 20. Bxh6 {[%emt 0:00:23]} Ne4 {[%emt 0:00:01]} 21. Qh5 {[%emt 0:02:22]} f6 {[%emt 0:04:27]} 22. Rab1 {[%emt 0:01:05]} Rf7 {[%emt 0:00:29]} 23. Qg6 {[%emt 0:01:35]} Qa5 {[%emt 0:01:13]} 24. Rb2 {[%emt 0:01:30]} Rd8 {[%emt 0:01:15]} 25. Reb1 {[%emt 0:00:09]} Qc7 {[%emt 0:00:01]} 26. Rb3 {[%emt 0:00:57]} Kh8 {[%emt 0:00:10]} 27. Bf4 {[%emt 0:00:50]} Qd7 {[%emt 0:00:24]} 28. Nh4 {[%emt 0:02:02]} Bf8 {[%emt 0:00:08]} 29. d5 {[%emt 0:00:38]} cxd5 {[%emt 0:00:11]} 30. cxd5 {[%emt 0:00:01]} e5 {[%emt 0:00:12]} 31. Be3 {[%emt 0:00:31]} Rg7 {[%emt 0:00:07]} 32. Qxf5 {[%emt 0:00:18]} Qxd5 {[%emt 0:00:02]} 33. Rb8 {[%emt 0:00:14]} Rxb8 {[%emt 0:00:19]} 34. Rxb8 {[%emt 0:00:01]} Kg8 {[%emt 0:00:10]} 35. Ng6 {[%emt 0:00:09]} Qd1+ {[%emt 0:00:12]} 36. Kh2 {[%emt 0:00:01]} 1-0

[Event "Hungarian Rapid-ch 2022"]
[Site "Ajka"]
[Date "2022.07.17"]
[Round "11.11"]
[White "Vertetics, Attila"]
[Black "Kovacs, Klara"]
[Result "1/2-1/2"]
[ECO "E10"]
[WhiteElo "2465"]
[BlackElo "2098"]
[Annotator "ChessBase"]
[PlyCount "87"]
[EventDate "2022.07.15"]
[EventType "swiss"]
[EventCountry "HUN"]
[SourceTitle "playchess.com"]
[Source "ChessBase"]
[SourceQuality "1"]
[TimeControl "900+10"]

1. d4 {[%emt 0:00:11]} Nf6 {[%emt 0:00:12]} 2. c4 {[%emt 0:00:04]} e6 {[%emt 0:00:01]} 3. Nf3 {[%emt 0:00:02]} d5 {[%emt 0:00:01]} 4. e3 {[%emt 0:00:05]} Be7 {[%emt 0:00:11]} 5. Nc3 {[%emt 0:00:03]} O-O {[%emt 0:00:02]} 6. Bd3 {[%emt 0:00:09]} dxc4 {[%emt 0:00:02]} 7. Bxc4 {[%emt 0:00:01]} c5 {[%emt 0:00:01]} 8. O-O {[%emt 0:00:05]} cxd4 {[%emt 0:00:06]} 9. Nxd4 {[%emt 0:00:07]} e5 {[%emt 0:00:10]} 10. Nb3 {[%emt 0:00:23]} Qc7 {[%emt 0:00:29]} 11. Qe2 {[%emt 0:00:12]} e4 {[%emt 0:00:10]} 12. Nb5 {[%emt 0:02:57]} Qe5 {[%emt 0:00:02]} 13. f4 {[%emt 0:01:49]} exf3 {[%emt 0:00:11]} 14. Qxf3 {[%emt 0:00:05]} a6 {[%emt 0:01:37]} 15. N5d4 {[%emt 0:00:29]} Bd6 {[%emt 0:00:17]} 16. Qf4 {[%emt 0:00:38]} Qe7 {[%emt 0:00:05]} 17. Qh4 {[%emt 0:00:44]} b5 {[%emt 0:04:11]} 18. Bd3 {[%emt 0:00:10]} Re8 {[%emt 0:00:33]} 19. Nf5 {[%emt 0:01:58]} Bxf5 {[%emt 0:00:07]} 20. Bxf5 {[%emt 0:00:10]} Nc6 {[%emt 0:00:08]} 21. e4 {[%emt 0:03:09]} Qa7+ {[%emt 0:04:30]} 22. Kh1 {[%emt 0:00:06]} Ne7 {[%emt 0:00:09]} 23. Bf4 {[%emt 0:02:23]} Nxf5 {[%emt 0:00:39]} 24. exf5 {[%emt 0:00:01]} Re4 {[%emt 0:00:10]} 25. Rad1 {[%emt 0:00:11]} Be5 {[%emt 0:00:45]} 26. Rde1 {[%emt 0:00:47]} Rxe1 {[%emt 0:00:53]} 27. Qxe1 {[%emt 0:00:03]} Bxf4 {[%emt 0:00:38]} 28. Rxf4 {[%emt 0:00:01]} Re8 {[%emt 0:00:01]} 29. Qd2 {[%emt 0:00:17]} Qd7 {[%emt 0:00:40]} 30. h3 {[%emt 0:00:14]} Qc7 {[%emt 0:00:29]} 31. Kg1 {[%emt 0:00:32]} h6 {[%emt 0:00:03]} 32. Rd4 {[%emt 0:00:29]} Qe5 {[%emt 0:00:13]} 33. Qf4 {[%emt 0:00:12]} Qe1+ {[%emt 0:00:06]} 34. Qf1 {[%emt 0:00:07]} Qe3+ {[%emt 0:00:02]} 35. Qf2 {[%emt 0:00:02]} Qg5 {[%emt 0:00:05]} 36. Qf4 {[%emt 0:00:09]} Qh5 {[%emt 0:00:16]} 37. Rd2 {[%emt 0:00:14]} Ne4 {[%emt 0:00:14]} 38. Rd4 {[%emt 0:00:21]} Qe2 {[%emt 0:00:20]} 39. Nd2 {[%emt 0:00:12]} Qe1+ {[%emt 0:00:14]} 40. Nf1 {[%emt 0:00:16]} h5 {[%emt 0:00:36]} 41. Qe3 {[%emt 0:00:45]} Qb1 {[%emt 0:00:20]} 42. Qd3 {[%emt 0:00:18]} Qe1 {[%emt 0:01:10]} 43. Qe3 {[%emt 0:00:04]} Qb1 {[%emt 0:00:01]} 44. Qd3 {[%emt 0:00:07]} 1/2-1/2

[Event "Hungarian Rapid-ch 2022"]
[Site "Ajka"]
[Date "2022.07.17"]
[Round "11.12"]
[White "Horvath, Adam"]
[Black "Leviczky, Tibor"]
[Result "1-0"]
[ECO "B42"]
[WhiteElo "2520"]
[BlackElo "2281"]
[Annotator "ChessBase"]
[PlyCount "75"]
[EventDate "2022.07.15"]
[EventType "swiss"]
[EventCountry "HUN"]
[SourceTitle "playchess.com"]
[Source "ChessBase"]
[SourceQuality "1"]
[TimeControl "900+10"]

1. e4 {[%emt 0:00:12]} c5 {[%emt 0:00:11]} 2. Nf3 {[%emt 0:00:02]} e6 {[%emt 0:00:01]} 3. d4 {[%emt 0:00:02]} cxd4 {[%emt 0:00:02]} 4. Nxd4 {[%emt 0:00:01]} a6 {[%emt 0:00:01]} 5. Bd3 {[%emt 0:00:02]} Nf6 {[%emt 0:00:01]} 6. O-O {[%emt 0:00:06]} Qc7 {[%emt 0:00:02]} 7. Qe2 {[%emt 0:00:10]} d6 {[%emt 0:00:02]} 8. c4 {[%emt 0:00:02]} Nbd7 {[%emt 0:00:02]} 9. Nc3 {[%emt 0:00:06]} Be7 {[%emt 0:00:03]} 10. Kh1 {[%emt 0:00:21]} O-O {[%emt 0:00:16]} 11. f4 {[%emt 0:00:03]} b6 {[%emt 0:00:11]} 12. Bd2 {[%emt 0:00:09]} Bb7 {[%emt 0:00:05]} 13. Rae1 {[%emt 0:00:02]} Rfd8 {[%emt 0:00:05]} 14. Nf3 {[%emt 0:00:10]} Nc5 {[%emt 0:01:47]} 15. Bc2 {[%emt 0:01:36]} g6 {[%emt 0:00:17]} 16. b4 {[%emt 0:00:21]} Ncd7 {[%emt 0:00:04]} 17. Bb3 {[%emt 0:00:10]} Re8 {[%emt 0:01:17]} 18. Ng5 {[%emt 0:01:50]} Bf8 {[%emt 0:03:13]} 19. a3 {[%emt 0:04:10]} Bg7 {[%emt 0:02:35]} 20. Qf2 {[%emt 0:03:06]} h6 {[%emt 0:01:27]} 21. Nf3 {[%emt 0:00:02]} Rad8 {[%emt 0:04:04]} 22. h3 {[%emt 0:00:11]} Nh5 {[%emt 0:00:24]} 23. Rc1 {[%emt 0:01:10]} Qb8 {[%emt 0:00:21]} 24. Nh2 {[%emt 0:01:11]} Nhf6 {[%emt 0:00:16]} 25. Rce1 {[%emt 0:00:11]} Qc7 {[%emt 0:00:13]} 26. Re2 {[%emt 0:00:41]} Ba8 {[%emt 0:00:13]} 27. Qh4 {[%emt 0:00:44]} Qb8 {[%emt 0:00:39]} 28. Nf3 {[%emt 0:00:27]} b5 {[%emt 0:00:21]} 29. cxb5 {[%emt 0:00:04]} axb5 {[%emt 0:00:01]} 30. Nd4 {[%emt 0:00:43]} d5 {[%emt 0:00:35]} 31. e5 {[%emt 0:01:18]} Ne4 {[%emt 0:00:04]} 32. Ncxb5 {[%emt 0:00:08]} Nxd2 {[%emt 0:00:40]} 33. Rxd2 {[%emt 0:00:01]} g5 {[%emt 0:00:18]} 34. fxg5 {[%emt 0:00:28]} hxg5 {[%emt 0:00:02]} 35. Qh5 {[%emt 0:00:12]} Nxe5 {[%emt 0:00:07]} 36. Bc2 {[%emt 0:00:08]} f5 {[%emt 0:00:08]} 37. Qxg5 {[%emt 0:00:06]} Rf8 {[%emt 0:00:24]} 38. Nxe6 {[%emt 0:00:05]} 1-0

[Event "Hungarian Rapid-ch 2022"]
[Site "Ajka"]
[Date "2022.07.17"]
[Round "11.13"]
[White "Tolnai, Tibor"]
[Black "Lazarne Vajda, Szidonia"]
[Result "1-0"]
[ECO "C50"]
[WhiteElo "2433"]
[BlackElo "2313"]
[Annotator "ChessBase"]
[PlyCount "45"]
[EventDate "2022.07.15"]
[EventType "swiss"]
[EventCountry "HUN"]
[SourceTitle "playchess.com"]
[Source "ChessBase"]
[SourceQuality "1"]
[TimeControl "900+10"]

1. e4 {[%emt 0:01:16]} e5 {[%emt 0:00:16]} 2. Bc4 {[%emt 0:00:07]} Nf6 {[%emt 0:00:10]} 3. d3 {[%emt 0:00:02]} Bc5 {[%emt 0:01:13]} 4. Nf3 {[%emt 0:00:06]} Nc6 {[%emt 0:00:06]} 5. c3 {[%emt 0:00:21]} a6 {[%emt 0:00:26]} 6. Bb3 {[%emt 0:00:13]} O-O {[%emt 0:00:10]} 7. Bg5 {[%emt 0:00:15]} h6 {[%emt 0:00:04]} 8. Bh4 {[%emt 0:00:01]} Be7 {[%emt 0:00:01]} 9. Nbd2 {[%emt 0:00:56]} d6 {[%emt 0:00:02]} 10. Nf1 {[%emt 0:00:24]} Be6 {[%emt 0:00:17]} 11. Ne3 {[%emt 0:00:13]} Nh5 {[%emt 0:01:17]} 12. Bg3 {[%emt 0:01:07]} Nxg3 {[%emt 0:00:57]} 13. hxg3 {[%emt 0:00:02]} Bg5 {[%emt 0:00:24]} 14. Bxe6 {[%emt 0:02:17]} fxe6 {[%emt 0:00:04]} 15. Qb3 {[%emt 0:00:05]} Qd7 {[%emt 0:02:53]} 16. Nxg5 hxg5 17. Qd1 {[%emt 0:00:21]} Qf7 {[%emt 0:00:44]} 18. Qe2 {[%emt 0:00:22]} Qg6 {[%emt 0:00:28]} 19. Qg4 {[%emt 0:00:47]} Rf6 {[%emt 0:04:34]} 20. Rh5 {[%emt 0:01:20]} Qf7 {[%emt 0:00:06]} 21. Qh3 {[%emt 0:01:03]} Rh6 {[%emt 0:03:27]} 22. Rxh6 {[%emt 0:00:13]} gxh6 {[%emt 0:00:01]} 23. Qxh6 1-0

[Event "Hungarian Rapid-ch 2022"]
[Site "Ajka"]
[Date "2022.07.17"]
[Round "11.14"]
[White "Balint, Vilmos"]
[Black "Csiszar, Csaba"]
[Result "0-1"]
[ECO "B32"]
[WhiteElo "2283"]
[BlackElo "2389"]
[Annotator "ChessBase"]
[PlyCount "70"]
[EventDate "2022.07.15"]
[EventType "swiss"]
[EventCountry "HUN"]
[SourceTitle "playchess.com"]
[Source "ChessBase"]
[SourceQuality "1"]
[TimeControl "900+10"]

1. e4 {[%emt 0:00:18]} c5 {[%emt 0:00:11]} 2. Nf3 {[%emt 0:00:01]} Nc6 {[%emt 0:00:01]} 3. d4 {[%emt 0:00:01]} cxd4 {[%emt 0:00:01]} 4. Nxd4 {[%emt 0:00:01]} e5 {[%emt 0:00:01]} 5. Nb5 {[%emt 0:00:03]} d6 {[%emt 0:00:01]} 6. c4 {[%emt 0:00:07]} Be7 {[%emt 0:00:01]} 7. Bd3 {[%emt 0:00:04]} Nf6 {[%emt 0:00:16]} 8. O-O {[%emt 0:00:05]} O-O {[%emt 0:00:05]} 9. h3 {[%emt 0:00:07]} Be6 {[%emt 0:00:18]} 10. Be3 {[%emt 0:00:08]} Ne8 {[%emt 0:00:03]} 11. Nd2 {[%emt 0:00:35]} Bg5 {[%emt 0:00:11]} 12. Rc1 {[%emt 0:03:25]} Bxe3 {[%emt 0:00:08]} 13. fxe3 {[%emt 0:00:01]} a6 {[%emt 0:01:29]} 14. Nc3 {[%emt 0:00:05]} Qb6 {[%emt 0:00:01]} 15. Rf3 {[%emt 0:00:56]} Qxb2 {[%emt 0:00:31]} 16. Nd5 {[%emt 0:05:35]} Qa3 {[%emt 0:00:05]} 17. Nb3 {[%emt 0:00:18]} Bxd5 {[%emt 0:07:08]} 18. exd5 {[%emt 0:00:51]} Na5 {[%emt 0:00:15]} 19. Rb1 {[%emt 0:01:12]} Qxa2 {[%emt 0:00:50]} 20. Nxa5 {[%emt 0:00:18]} Qxa5 {[%emt 0:00:01]} 21. Rxb7 {[%emt 0:00:01]} Rc8 {[%emt 0:00:52]} 22. Qb1 {[%emt 0:03:09]} Nf6 {[%emt 0:02:34]} 23. Rxf6 {[%emt 0:00:24]} gxf6 {[%emt 0:00:01]} 24. Qf1 {[%emt 0:00:04]} Kg7 {[%emt 0:00:58]} 25. Kh2 {[%emt 0:00:21]} e4 {[%emt 0:00:24]} 26. Bxe4 {[%emt 0:00:06]} Qc3 {[%emt 0:00:02]} 27. Re7 {[%emt 0:00:30]} Qxe3 {[%emt 0:00:29]} 28. Qf5 {[%emt 0:00:09]} Qh6 {[%emt 0:00:15]} 29. Qd7 {[%emt 0:00:28]} Qf4+ {[%emt 0:01:02]} 30. g3 {[%emt 0:00:07]} Qd2+ {[%emt 0:00:03]} 31. Bg2 {[%emt 0:00:01]} Rxc4 {[%emt 0:00:05]} 32. Qf5 {[%emt 0:00:28]} Rc2 {[%emt 0:00:11]} 33. Qg4+ {[%emt 0:00:01]} Kh8 {[%emt 0:00:08]} 34. Qf3 Qf2 {[%emt 0:00:09]} 35. Qe4 {[%emt 0:00:15]} f5 {[%emt 0:00:10]} 0-1

[Event "Hungarian Rapid-ch 2022"]
[Site "Ajka"]
[Date "2022.07.17"]
[Round "11.15"]
[White "Papp, Levente"]
[Black "Reviczki, Roland"]
[Result "1-0"]
[ECO "A15"]
[WhiteElo "2394"]
[BlackElo "2160"]
[Annotator "ChessBase"]
[PlyCount "93"]
[EventDate "2022.07.15"]
[EventType "swiss"]
[EventCountry "HUN"]
[SourceTitle "playchess.com"]
[Source "ChessBase"]
[SourceQuality "1"]
[TimeControl "900+10"]

1. c4 {[%emt 0:00:13]} Nf6 {[%emt 0:00:15]} 2. g3 {[%emt 0:00:04]} g6 {[%emt 0:00:02]} 3. Bg2 {[%emt 0:00:01]} Bg7 {[%emt 0:00:01]} 4. Nc3 {[%emt 0:00:02]} O-O {[%emt 0:00:03]} 5. e4 {[%emt 0:00:02]} d6 {[%emt 0:00:05]} 6. Nge2 {[%emt 0:00:02]} c5 {[%emt 0:00:12]} 7. O-O {[%emt 0:00:02]} Nc6 {[%emt 0:00:05]} 8. d3 {[%emt 0:00:02]} a6 {[%emt 0:01:27]} 9. Rb1 {[%emt 0:00:02]} Rb8 {[%emt 0:01:11]} 10. a3 {[%emt 0:00:03]} b5 {[%emt 0:00:05]} 11. cxb5 {[%emt 0:00:01]} axb5 {[%emt 0:00:02]} 12. b4 {[%emt 0:00:01]} cxb4 {[%emt 0:02:29]} 13. axb4 {[%emt 0:00:02]} Bg4 {[%emt 0:00:05]} 14. f3 {[%emt 0:01:44]} Be6 {[%emt 0:00:53]} 15. d4 {[%emt 0:00:23]} Bc4 {[%emt 0:00:51]} 16. Be3 {[%emt 0:00:19]} e5 {[%emt 0:01:35]} 17. d5 {[%emt 0:04:07]} Ne7 {[%emt 0:02:28]} 18. Ra1 {[%emt 0:01:07]} Ra8 {[%emt 0:00:19]} 19. Rxa8 {[%emt 0:00:40]} Qxa8 {[%emt 0:00:01]} 20. Qa1 {[%emt 0:00:01]} Qb7 {[%emt 0:00:50]} 21. Qb2 {[%emt 0:00:02]} Nd7 {[%emt 0:00:13]} 22. Ra1 {[%emt 0:00:17]} Ra8 {[%emt 0:00:39]} 23. Ra3 {[%emt 0:01:16]} Nb6 {[%emt 0:01:16]} 24. Qa1 {[%emt 0:01:16]} Rxa3 {[%emt 0:00:14]} 25. Qxa3 {[%emt 0:00:01]} Bxe2 {[%emt 0:00:28]} 26. Nxe2 {[%emt 0:00:01]} Nc4 {[%emt 0:00:01]} 27. Qa7 {[%emt 0:00:01]} Qxa7 {[%emt 0:00:19]} 28. Bxa7 {[%emt 0:00:02]} Bh6 {[%emt 0:00:34]} 29. f4 {[%emt 0:01:35]} exf4 {[%emt 0:00:35]} 30. gxf4 {[%emt 0:00:03]} f5 {[%emt 0:00:09]} 31. e5 {[%emt 0:02:45]} dxe5 {[%emt 0:00:01]} 32. Bc5 {[%emt 0:00:01]} Nc8 {[%emt 0:00:59]} 33. fxe5 {[%emt 0:00:03]} Nxe5 {[%emt 0:00:14]} 34. Nc3 {[%emt 0:00:00]} Nd7 {[%emt 0:00:48]} 35. d6 {[%emt 0:00:01]} Kf7 {[%emt 0:00:17]} 36. Bc6 {[%emt 0:01:56]} Ncb6 {[%emt 0:00:48]} 37. Kf2 {[%emt 0:00:56]} Ne5 {[%emt 0:00:33]} 38. Bxb5 {[%emt 0:00:12]} Nbd7 {[%emt 0:00:07]} 39. Nd5 {[%emt 0:00:41]} Bg5 {[%emt 0:00:10]} 40. Ke2 {[%emt 0:00:17]} Bd8 {[%emt 0:00:08]} 41. Ba4 {[%emt 0:00:05]} g5 {[%emt 0:00:08]} 42. Bb3 {[%emt 0:00:11]} Kg7 {[%emt 0:00:08]} 43. Bd4 {[%emt 0:00:11]} Kh6 {[%emt 0:00:14]} 44. b5 {[%emt 0:00:06]} f4 {[%emt 0:00:04]} 45. Ne7 {[%emt 0:00:53]} Kh5 {[%emt 0:00:18]} 46. Nc6 {[%emt 0:00:09]} Nf7 {[%emt 0:00:08]} 47. Bxf7+ {[%emt 0:00:03]} 1-0

[Event "Hungarian Rapid-ch 2022"]
[Site "Ajka"]
[Date "2022.07.17"]
[Round "11.16"]
[White "Margl, Roland"]
[Black "Hoang, Thanh Trang"]
[Result "0-1"]
[ECO "A04"]
[WhiteElo "2312"]
[BlackElo "2376"]
[Annotator "ChessBase"]
[PlyCount "66"]
[EventDate "2022.07.15"]
[EventType "swiss"]
[EventCountry "HUN"]
[SourceTitle "playchess.com"]
[Source "ChessBase"]
[SourceQuality "1"]
[TimeControl "900+10"]

1. Nf3 {[%emt 0:00:16]} f5 {[%emt 0:00:16]} 2. d4 {[%emt 0:00:02]} Nf6 {[%emt 0:00:05]} 3. g3 {[%emt 0:00:01]} e6 {[%emt 0:00:07]} 4. Bg2 {[%emt 0:00:02]} d5 {[%emt 0:00:04]} 5. O-O {[%emt 0:00:03]} Bd6 {[%emt 0:00:03]} 6. c4 {[%emt 0:00:03]} c6 {[%emt 0:00:03]} 7. Qc2 {[%emt 0:00:02]} O-O {[%emt 0:00:40]} 8. Ne5 {[%emt 0:00:07]} Nbd7 {[%emt 0:01:47]} 9. Nd3 {[%emt 0:00:02]} Qe7 {[%emt 0:01:20]} 10. Bf4 {[%emt 0:00:10]} Ne4 {[%emt 0:02:41]} 11. Bxd6 {[%emt 0:01:42]} Qxd6 {[%emt 0:00:12]} 12. cxd5 {[%emt 0:00:58]} exd5 {[%emt 0:02:03]} 13. Rc1 {[%emt 0:00:52]} Rf6 {[%emt 0:01:59]} 14. Nd2 {[%emt 0:00:33]} Rh6 {[%emt 0:00:48]} 15. Nf3 {[%emt 0:01:38]} Ndf6 {[%emt 0:00:12]} 16. b4 {[%emt 0:03:01]} Bd7 {[%emt 0:00:17]} 17. Rab1 {[%emt 0:01:56]} Rf8 {[%emt 0:00:45]} 18. e3 {[%emt 0:01:12]} g5 {[%emt 0:00:28]} 19. Re1 {[%emt 0:00:34]} Ng4 {[%emt 0:00:36]} 20. a4 {[%emt 0:00:53]} f4 {[%emt 0:01:15]} 21. exf4 {[%emt 0:00:50]} gxf4 {[%emt 0:00:03]} 22. h3 {[%emt 0:01:03]} fxg3 {[%emt 0:00:28]} 23. hxg4 {[%emt 0:00:22]} gxf2+ {[%emt 0:00:27]} 24. Nxf2 {[%emt 0:00:07]} Rxf3 {[%emt 0:00:11]} 25. Rxe4 {[%emt 0:00:19]} dxe4 {[%emt 0:00:35]} 26. Bxf3 {[%emt 0:01:09]} exf3 {[%emt 0:00:21]} 27. Qb3+ {[%emt 0:00:39]} Be6 {[%emt 0:00:06]} 28. Qxf3 {[%emt 0:00:01]} Qh2+ {[%emt 0:00:06]} 29. Kf1 {[%emt 0:00:02]} Bc4+ {[%emt 0:00:05]} 30. Ke1 {[%emt 0:00:49]} Qg1+ {[%emt 0:00:05]} 31. Kd2 {[%emt 0:00:01]} Qxb1 {[%emt 0:00:03]} 32. Qf4 {[%emt 0:00:07]} Qxb4+ {[%emt 0:00:30]} 33. Kc1 {[%emt 0:00:08]} Qd6 {[%emt 0:00:28]} 0-1